[Event "Open Nuevo Centro. Jornada 1"]
[Site "Chess.com"]
[Date "2020.06.19"]
[Round "8"]
[White "Rodriguez Rodriguez, Joan David "]
[Black "Hassomal Daswani, Birjkumar"]
[Result "0-1"]
[WhiteElo "1625"]
[BlackElo "1843"]
[TimeControl "180+2"]
[EndTime "12:01:44 PDT"]
[Termination "Victoria de daz000007 por tiempo"]

1. d4 {[%clk 0:03:01.9]} 1... Nf6 {[%clk 0:02:59.9]} 2. c4 {[%clk 0:03:03.1]}
2... c5 {[%clk 0:03:00.4]} 3. d5 {[%clk 0:03:03.7]} 3... e5 {[%clk 0:03:00.2]}
4. Nc3 {[%clk 0:03:04.2]} 4... d6 {[%clk 0:03:00.9]} 5. e4 {[%clk 0:03:04.8]}
5... Be7 {[%clk 0:03:02.2]} 6. g3 {[%clk 0:03:05.6]} 6... Nbd7 {[%clk
0:03:03.6]} 7. Bg2 {[%clk 0:03:06.8]} 7... Nf8 {[%clk 0:03:04.2]} 8. Nge2 {[%clk
0:03:07.8]} 8... Ng6 {[%clk 0:03:04]} 9. O-O {[%clk 0:03:08.7]} 9... h5 {[%clk
0:03:04.6]} 10. h3 {[%clk 0:02:58.2]} 10... h4 {[%clk 0:03:02.3]} 11. g4 {[%clk
0:02:59.2]} 11... Bd7 {[%clk 0:03:03]} 12. a4 {[%clk 0:02:58.1]} 12... a6 {[%clk
0:03:03.1]} 13. f4 {[%clk 0:02:53.3]} 13... exf4 {[%clk 0:03:02.1]} 14. Nxf4
{[%clk 0:02:49.3]} 14... Ne5 {[%clk 0:02:56.1]} 15. Qe2 {[%clk 0:02:25.5]} 15...
Nh7 {[%clk 0:02:39.5]} 16. Nh5 {[%clk 0:02:10]} 16... g6 {[%clk 0:02:36]} 17.
Ng7+ {[%clk 0:01:58.3]} 17... Kf8 {[%clk 0:02:36.4]} 18. Bh6 {[%clk 0:01:59.8]}
18... Kg8 {[%clk 0:02:31.6]} 19. Qf2 {[%clk 0:01:35]} 19... Bg5 {[%clk
0:02:29.4]} 20. Bxg5 {[%clk 0:01:08.9]} 20... Qxg5 {[%clk 0:02:28.9]} 21. Ne6
{[%clk 0:00:46.6]} 21... fxe6 {[%clk 0:02:24.3]} 22. dxe6 {[%clk 0:00:48.5]}
22... Bxe6 {[%clk 0:02:24.6]} 23. Nd5 {[%clk 0:00:49.8]} 23... Bxd5 {[%clk
0:02:21.8]} 24. exd5 {[%clk 0:00:51.7]} 24... Rf8 {[%clk 0:02:22]} 25. Qe2
{[%clk 0:00:51.2]} 25... Kg7 {[%clk 0:02:19.4]} 26. Be4 {[%clk 0:00:33]} 26...
Rxf1+ {[%clk 0:02:16.1]} 27. Rxf1 {[%clk 0:00:33]} 27... Rf8 {[%clk 0:02:15.7]}
28. Rxf8 {[%clk 0:00:28.4]} 28... Kxf8 {[%clk 0:02:12.3]} 29. Bc2 {[%clk
0:00:24.3]} 29... Kg7 {[%clk 0:02:04]} 30. a5 {[%clk 0:00:22.6]} 30... Nf6
{[%clk 0:02:01.8]} 31. Ba4 {[%clk 0:00:20.2]} 31... Qf4 {[%clk 0:01:59.3]} 32.
Bc2 {[%clk 0:00:13.6]} 32... Nf3+ {[%clk 0:01:58.9]} 33. Kf2 {[%clk 0:00:09.8]}
33... Nd4+ {[%clk 0:01:58.2]} 0

[Event "Open Nuevo Centro. Jornada 1"]
[Site "Chess.com"]
[Date "2020.06.19"]
[Round "8"]
[White "Crevillen Abad, Clemente"]
[Black "Fern�ndez Martin, Carlos"]
[Result "0-1"]
[WhiteElo "1754"]
[BlackElo "1610"]
[TimeControl "180+2"]
[EndTime "12:01:55 PDT"]
[Termination "Victoria de Pistachomortal por abandono"]

1. e4 {[%clk 0:03:01.9]} 1... c5 {[%clk 0:03:00.4]} 2. d4 {[%clk 0:03:02]} 2...
cxd4 {[%clk 0:03:00.9]} 3. c3 {[%clk 0:03:03]} 3... dxc3 {[%clk 0:03:01.2]} 4.
Nxc3 {[%clk 0:03:04.6]} 4... Nc6 {[%clk 0:03:01]} 5. Bc4 {[%clk 0:03:03.1]} 5...
e6 {[%clk 0:03:01.8]} 6. Nf3 {[%clk 0:03:01.7]} 6... Nge7 {[%clk 0:02:50.6]} 7.
O-O {[%clk 0:02:58.1]} 7... Ng6 {[%clk 0:02:51.4]} 8. Re1 {[%clk 0:02:16.1]}
8... Be7 {[%clk 0:02:51.5]} 9. Nd5 {[%clk 0:02:01.5]} 9... exd5 {[%clk 0:02:41]}
10. exd5 {[%clk 0:02:01.1]} 10... Na5 {[%clk 0:02:36.6]} 11. Bd3 {[%clk
0:02:01.2]} 11... O-O {[%clk 0:02:35.5]} 12. b4 {[%clk 0:02:01.5]} 12... Bxb4
{[%clk 0:02:33.6]} 13. Bd2 {[%clk 0:01:57.8]} 13... Bxd2 {[%clk 0:02:33.6]} 14.
Qxd2 {[%clk 0:01:58.6]} 14... b6 {[%clk 0:02:30.2]} 15. d6 {[%clk 0:01:49]}
15... Bb7 {[%clk 0:02:26.9]} 16. Nd4 {[%clk 0:01:42.1]} 16... Nc6 {[%clk
0:02:26.1]} 17. Nb5 {[%clk 0:01:38]} 17... Nce5 {[%clk 0:02:23.1]} 18. Nc7
{[%clk 0:01:34]} 18... Rc8 {[%clk 0:02:21.1]} 19. Be4 {[%clk 0:01:31]} 19...
Bxe4 {[%clk 0:02:18.1]} 20. Rxe4 {[%clk 0:01:31.3]} 20... Qf6 {[%clk 0:02:14.9]}
21. Rae1 {[%clk 0:01:26.9]} 21... h5 {[%clk 0:01:43.3]} 22. f4 {[%clk
0:01:19.7]} 22... Ng4 {[%clk 0:01:43.6]} 23. h3 {[%clk 0:01:17.6]} 23... Nh6
{[%clk 0:01:34.1]} 24. Kh2 {[%clk 0:00:58.3]} 24... Nf5 {[%clk 0:01:34.2]} 25.
Rd1 {[%clk 0:00:46.9]} 25... h4 {[%clk 0:01:29.7]} 26. Qb4 {[%clk 0:00:23.4]}
26... Ng3 {[%clk 0:01:21]} 27. Nd5 {[%clk 0:00:18.6]} 27... Qf5 {[%clk
0:01:16.5]} 28. Re5 {[%clk 0:00:18.2]} 28... Qc2 {[%clk 0:01:03.6]} 29. Nc7
{[%clk 0:00:13.1]} 29... Qxd1 {[%clk 0:01:02.4]} 0

[Event "Open Nuevo Centro. Jornada 1"]
[Site "Chess.com"]
[Date "2020.06.19"]
[Round "8"]
[White "Saiz Sapena, Veronica"]
[Black "Limaymanta Solis, Luis Anderson"]
[Result "1-0"]
[WhiteElo "1557"]
[BlackElo "1059"]
[TimeControl "180+2"]
[EndTime "12:01:56 PDT"]
[Termination "Victoria de Titina1 por jaque mate"]

1. e4 {[%clk 0:02:57.2]} 1... e6 {[%clk 0:03:01.9]} 2. d4 {[%clk 0:02:57.2]}
2... c5 {[%clk 0:03:02.3]} 3. Nf3 {[%clk 0:02:55.9]} 3... Qa5+ {[%clk
0:03:01.9]} 4. Bd2 {[%clk 0:02:54.4]} 4... Qb6 {[%clk 0:03:02.9]} 5. dxc5 {[%clk
0:02:46.5]} 5... Qxb2 {[%clk 0:03:01]} 6. Bc3 {[%clk 0:02:39.2]} 6... Qxa2
{[%clk 0:02:45]} 7. Rxa2 {[%clk 0:02:39]} 7... Bxc5 {[%clk 0:02:46]} 8. Bd4
{[%clk 0:02:38.5]} 8... Bd6 {[%clk 0:02:45.6]} 9. Bd3 {[%clk 0:02:34.9]} 9...
Nc6 {[%clk 0:02:46.4]} 10. O-O {[%clk 0:02:34.3]} 10... h5 {[%clk 0:02:44.3]}
11. Bxg7 {[%clk 0:02:34.1]} 11... Rh7 {[%clk 0:02:44.1]} 12. Bc3 {[%clk
0:02:29.9]} 12... h4 {[%clk 0:02:41.1]} 13. e5 {[%clk 0:02:30.6]} 13... Rh5
{[%clk 0:02:20]} 14. Re1 {[%clk 0:02:29.5]} 14... Bc5 {[%clk 0:02:16.8]} 15. h3
{[%clk 0:02:21.2]} 15... b6 {[%clk 0:02:13.2]} 16. Be2 {[%clk 0:02:21.2]} 16...
Bb7 {[%clk 0:02:10.1]} 17. Ra4 {[%clk 0:02:20.7]} 17... O-O-O {[%clk 0:02:04.7]}
18. Rxh4 {[%clk 0:02:18.2]} 18... Rf5 {[%clk 0:01:57.3]} 19. Rh8 {[%clk
0:02:14.1]} 19... a5 {[%clk 0:01:46.7]} 20. Bd3 {[%clk 0:02:14.7]} 20... Rf4
{[%clk 0:01:39.1]} 21. Bd2 {[%clk 0:02:14.2]} 21... Ra4 {[%clk 0:01:34.4]} 22.
Nc3 {[%clk 0:02:12]} 22... Rb4 {[%clk 0:01:30.5]} 23. Ne4 {[%clk 0:02:11.6]}
23... Rb2 {[%clk 0:01:26.6]} 24. Nxc5 {[%clk 0:02:11.4]} 24... bxc5 {[%clk
0:01:25.5]} 25. Bc3 {[%clk 0:02:11.6]} 25... Rb6 {[%clk 0:01:24.6]} 26. Ng5
{[%clk 0:02:11.5]} 26... Nce7 {[%clk 0:01:15.3]} 27. Nxf7 {[%clk 0:02:10.9]}
27... Rf8 {[%clk 0:01:14.7]} 28. Nd6+ {[%clk 0:02:08.3]} 28... Kb8 {[%clk
0:01:03.8]} 29. Bxa5 {[%clk 0:02:06.2]} 29... Rc6 {[%clk 0:00:54.9]} 30. Be4
{[%clk 0:02:04.9]} 30... Ra6 {[%clk 0:00:54.1]} 31. Nxb7 {[%clk 0:02:00.9]}
31... d5 {[%clk 0:00:46.5]} 32. Bh7 {[%clk 0:01:58.2]} 32... Ng6 {[%clk
0:00:45.8]} 33. Rxg8 {[%clk 0:01:54.1]} 33... Rxa5 {[%clk 0:00:40]} 34. Nxa5
{[%clk 0:01:53.3]} 34... Ka7 {[%clk 0:00:38.2]} 35. Rxf8 {[%clk 0:01:53.4]}
35... Nxf8 {[%clk 0:00:38.6]} 36. Qa1 {[%clk 0:01:51.9]} 36... Kb6 {[%clk
0:00:38.2]} 37. Bd3 {[%clk 0:01:47.9]} 37... c4 {[%clk 0:00:37.3]} 38. Nxc4+
{[%clk 0:01:47.2]} 38... dxc4 {[%clk 0:00:37.2]} 39. Bxc4 {[%clk 0:01:47.6]}
39... Kc5 {[%clk 0:00:38.2]} 40. Qc3 {[%clk 0:01:45.7]} 40... Kb6 {[%clk
0:00:34.7]} 41. Bxe6 {[%clk 0:01:44.8]} 41... Nxe6 {[%clk 0:00:34.1]} 42. Rb1+
{[%clk 0:01:45.7]} 42... Ka6 {[%clk 0:00:30.6]} 43. Qa3# {[%clk 0:01:45.3]} 1

[Event "Open Nuevo Centro. Jornada 1"]
[Site "Chess.com"]
[Date "2020.06.19"]
[Round "8"]
[White "Gimeno Higueras, Roberto"]
[Black "Lopez Mateo, Juan Carlos"]
[Result "0-1"]
[WhiteElo "2018"]
[BlackElo "1955"]
[TimeControl "180+2"]
[EndTime "12:02:02 PDT"]
[Termination "Victoria de Tarantantinov por abandono"]

1. e4 {[%clk 0:03:01.9]} 1... c5 {[%clk 0:02:59.5]} 2. c3 {[%clk 0:03:02.9]}
2... Nf6 {[%clk 0:02:59.4]} 3. e5 {[%clk 0:03:04]} 3... Nd5 {[%clk 0:03:00.9]}
4. d4 {[%clk 0:03:05.4]} 4... cxd4 {[%clk 0:03:01.7]} 5. Nf3 {[%clk 0:03:07]}
5... d6 {[%clk 0:03:03]} 6. cxd4 {[%clk 0:03:08]} 6... Nc6 {[%clk 0:03:02.3]} 7.
Bc4 {[%clk 0:03:08.9]} 7... Nb6 {[%clk 0:03:00.8]} 8. Bb5 {[%clk 0:03:10]} 8...
dxe5 {[%clk 0:02:34]} 9. Nxe5 {[%clk 0:03:11]} 9... Bd7 {[%clk 0:02:34.6]} 10.
Nxd7 {[%clk 0:03:12.1]} 10... Qxd7 {[%clk 0:02:31.9]} 11. O-O {[%clk 0:03:12.9]}
11... e6 {[%clk 0:02:28.9]} 12. Nc3 {[%clk 0:03:13.1]} 12... Be7 {[%clk
0:02:25.7]} 13. Qg4 {[%clk 0:03:00.1]} 13... O-O {[%clk 0:02:22.5]} 14. Rd1
{[%clk 0:03:00.9]} 14... f5 {[%clk 0:02:10.3]} 15. Bxc6 {[%clk 0:02:40.5]} 15...
Qxc6 {[%clk 0:02:04.5]} 16. Qg3 {[%clk 0:02:33.6]} 16... Rad8 {[%clk 0:02:00.6]}
17. Bf4 {[%clk 0:02:19.3]} 17... Bf6 {[%clk 0:01:55.5]} 18. Be5 {[%clk
0:02:19.8]} 18... Nd5 {[%clk 0:01:42.6]} 19. Rac1 {[%clk 0:02:17.1]} 19... Nxc3
{[%clk 0:01:31.8]} 20. Rxc3 {[%clk 0:02:15.9]} 20... Qe4 {[%clk 0:01:27.8]} 21.
Rdc1 {[%clk 0:01:37.7]} 21... Bxe5 {[%clk 0:01:14.8]} 22. dxe5 {[%clk 0:01:39]}
22... Qe2 {[%clk 0:01:09.7]} 23. h4 {[%clk 0:01:30.8]} 23... Qxb2 {[%clk
0:00:51.6]} 24. Rc7 {[%clk 0:01:01.5]} 24... Rf7 {[%clk 0:00:52.5]} 25. Qg5
{[%clk 0:00:51.2]} 25... Qd4 {[%clk 0:00:45.4]} 26. Qh5 {[%clk 0:00:33.7]} 26...
Rxc7 {[%clk 0:00:35.8]} 27. Rxc7 {[%clk 0:00:34.9]} 27... Qa1+ {[%clk
0:00:32.8]} 0

[Event "Open Nuevo Centro. Jornada 1"]
[Site "Chess.com"]
[Date "2020.06.19"]
[Round "8"]
[White "Gil Lopez, Alejandro"]
[Black "Roca Cruz, Rafael"]
[Result "1-0"]
[WhiteElo "2040"]
[BlackElo "1684"]
[TimeControl "180+2"]
[EndTime "12:02:07 PDT"]
[Termination "Victoria de AglVal0313 por abandono"]

1. e4 {[%clk 0:03:01.9]} 1... c5 {[%clk 0:03:00.9]} 2. Nf3 {[%clk 0:03:02.3]}
2... e6 {[%clk 0:03:01.9]} 3. c3 {[%clk 0:03:01.7]} 3... d5 {[%clk 0:03:01.9]}
4. exd5 {[%clk 0:03:01.4]} 4... Qxd5 {[%clk 0:03:02.4]} 5. d4 {[%clk 0:02:58.9]}
5... Nf6 {[%clk 0:03:03.3]} 6. Be2 {[%clk 0:02:54.9]} 6... cxd4 {[%clk
0:03:02.9]} 7. Qxd4 {[%clk 0:02:51]} 7... Nc6 {[%clk 0:03:01.9]} 8. Qxd5 {[%clk
0:02:46.9]} 8... Nxd5 {[%clk 0:03:00.7]} 9. O-O {[%clk 0:02:45.6]} 9... Bd6
{[%clk 0:02:46.2]} 10. Re1 {[%clk 0:02:45.5]} 10... O-O {[%clk 0:02:43]} 11. c4
{[%clk 0:02:45.5]} 11... Nf4 {[%clk 0:02:43.3]} 12. Bxf4 {[%clk 0:02:44.1]}
12... Bxf4 {[%clk 0:02:44]} 13. Nc3 {[%clk 0:02:46]} 13... Rd8 {[%clk
0:02:34.6]} 14. Rad1 {[%clk 0:02:42.6]} 14... Bd7 {[%clk 0:02:34.7]} 15. g3
{[%clk 0:02:36.4]} 15... Bh6 {[%clk 0:02:21.6]} 16. Ne4 {[%clk 0:02:29.4]} 16...
b6 {[%clk 0:02:04.5]} 17. a3 {[%clk 0:02:23.9]} 17... Be8 {[%clk 0:02:01.2]} 18.
b4 {[%clk 0:02:21.6]} 18... Rxd1 {[%clk 0:02:02]} 19. Rxd1 {[%clk 0:02:21.9]}
19... Rd8 {[%clk 0:02:02.9]} 20. Nd6 {[%clk 0:02:18.7]} 20... Kf8 {[%clk
0:01:52.5]} 21. c5 {[%clk 0:02:18.9]} 21... Ke7 {[%clk 0:01:42.4]} 22. Bb5
{[%clk 0:02:15.1]} 22... Ne5 {[%clk 0:00:58.5]} 23. Nxe5 {[%clk 0:02:11.5]}
23... Bxb5 {[%clk 0:00:58]} 24. Nexf7 {[%clk 0:02:08.7]} 24... Ba4 {[%clk
0:00:41.6]} 25. Nxd8 {[%clk 0:01:56.8]} 25... Bxd1 {[%clk 0:00:41]} 26. Nc6+
{[%clk 0:01:58.2]} 26... Kd7 {[%clk 0:00:41.1]} 27. Nxa7 {[%clk 0:01:55]} 27...
bxc5 {[%clk 0:00:42.1]} 28. bxc5 {[%clk 0:01:56.9]} 28... Ba4 {[%clk 0:00:40.6]}
29. Ndb5 {[%clk 0:01:41.8]} 29... g6 {[%clk 0:00:15]} 30. Nc3 {[%clk 0:01:30.1]}
30... Bc2 {[%clk 0:00:11.7]} 31. c6+ {[%clk 0:01:25.9]} 31... Kc7 {[%clk
0:00:08.3]} 32. Ncb5+ {[%clk 0:01:27.2]} 32... Kb6 {[%clk 0:00:09.2]} 33. c7
{[%clk 0:01:29.1]} 1

[Event "Open Nuevo Centro. Jornada 1"]
[Site "Chess.com"]
[Date "2020.06.19"]
[Round "8"]
[White "Gracia Calvo, Andres"]
[Black "Casado Andreu, David"]
[Result "1-0"]
[WhiteElo "1835"]
[BlackElo "1567"]
[TimeControl "180+2"]
[EndTime "12:02:12 PDT"]
[Termination "Victoria de andresjaque21 por tiempo"]

1. d4 {[%clk 0:03:00.6]} 1... Nf6 {[%clk 0:03:00.3]} 2. Nf3 {[%clk 0:03:01.9]}
2... d5 {[%clk 0:03:00.9]} 3. Bf4 {[%clk 0:03:03.3]} 3... Bf5 {[%clk 0:02:41.3]}
4. e3 {[%clk 0:03:04.1]} 4... e6 {[%clk 0:02:23]} 5. Bd3 {[%clk 0:03:04.6]} 5...
Bg6 {[%clk 0:02:21.7]} 6. Nbd2 {[%clk 0:03:04.9]} 6... Bd6 {[%clk 0:02:17.6]} 7.
Ne5 {[%clk 0:03:04.9]} 7... Bxd3 {[%clk 0:02:07.1]} 8. cxd3 {[%clk 0:03:04.1]}
8... Nbd7 {[%clk 0:02:03.4]} 9. O-O {[%clk 0:03:03]} 9... Qe7 {[%clk 0:01:37.2]}
10. Rc1 {[%clk 0:03:02.1]} 10... O-O-O {[%clk 0:01:31.7]} 11. Qa4 {[%clk
0:03:00.3]} 11... Kb8 {[%clk 0:01:28.6]} 12. Rc3 {[%clk 0:02:51]} 12... Nb6
{[%clk 0:01:24.7]} 13. Qb3 {[%clk 0:02:47.6]} 13... Bxe5 {[%clk 0:01:21.3]} 14.
Bxe5 {[%clk 0:02:43.9]} 14... Rd7 {[%clk 0:01:21.4]} 15. Rfc1 {[%clk 0:02:42.8]}
15... Rc8 {[%clk 0:01:18.4]} 16. a4 {[%clk 0:02:42.9]} 16... Na8 {[%clk
0:01:04.3]} 17. a5 {[%clk 0:02:38.8]} 17... a6 {[%clk 0:01:01.3]} 18. Qa4 {[%clk
0:02:32.8]} 18... Ng4 {[%clk 0:00:54.4]} 19. Bg3 {[%clk 0:02:19.1]} 19... h5
{[%clk 0:00:34.5]} 20. h3 {[%clk 0:02:17.6]} 20... h4 {[%clk 0:00:31.1]} 21. Bh2
{[%clk 0:02:13.1]} 21... Nxh2 {[%clk 0:00:29.3]} 22. Kxh2 {[%clk 0:02:13.1]}
22... Qd6+ {[%clk 0:00:30.4]} 23. f4 {[%clk 0:02:09.8]} 23... f5 {[%clk
0:00:29.8]} 24. Nf3 {[%clk 0:02:09.1]} 24... g6 {[%clk 0:00:18.5]} 25. Ne5
{[%clk 0:02:09.2]} 25... Rg7 {[%clk 0:00:19.2]} 26. b4 {[%clk 0:02:02.9]} 26...
Ka7 {[%clk 0:00:18.3]} 27. b5 {[%clk 0:01:59.4]} 27... axb5 {[%clk 0:00:13.7]}
28. Qxb5 {[%clk 0:01:58.3]} 28... Qa6 {[%clk 0:00:13.4]} 29. Qc5+ {[%clk
0:01:41.5]} 29... Kb8 {[%clk 0:00:11.6]} 30. Rb3 {[%clk 0:01:33.5]} 30... c6
{[%clk 0:00:05.2]} 31. Rcb1 {[%clk 0:01:29.5]} 31... Rcc7 {[%clk 0:00:03.8]} 32.
Qd6 {[%clk 0:01:26]} 1

[Event "Open Nuevo Centro. Jornada 1"]
[Site "Chess.com"]
[Date "2020.06.19"]
[Round "8"]
[White "Movsisyan, Tigran"]
[Black "Cebolla Ruiz, David"]
[Result "1-0"]
[WhiteElo "1877"]
[BlackElo "1634"]
[TimeControl "180+2"]
[EndTime "12:02:13 PDT"]
[Termination "Victoria de USHADIRvzgo por jaque mate"]

1. a3 {[%clk 0:03:01.9]} 1... Nf6 {[%clk 0:02:58.4]} 2. b4 {[%clk 0:03:03.8]}
2... g6 {[%clk 0:02:59.3]} 3. Bb2 {[%clk 0:02:22.2]} 3... Bg7 {[%clk 0:02:58.1]}
4. c4 {[%clk 0:02:23.6]} 4... O-O {[%clk 0:02:53]} 5. d4 {[%clk 0:02:24.2]} 5...
d5 {[%clk 0:02:47.8]} 6. e3 {[%clk 0:02:23.3]} 6... c6 {[%clk 0:02:44]} 7. Nd2
{[%clk 0:02:20]} 7... a5 {[%clk 0:02:41.2]} 8. Ngf3 {[%clk 0:02:17.3]} 8... Bg4
{[%clk 0:02:31.5]} 9. Be2 {[%clk 0:02:13.9]} 9... Nbd7 {[%clk 0:02:29.2]} 10.
O-O {[%clk 0:02:11.6]} 10... Re8 {[%clk 0:02:11.5]} 11. Qb3 {[%clk 0:02:11.2]}
11... Qc7 {[%clk 0:02:08.5]} 12. h3 {[%clk 0:02:07.5]} 12... Bxf3 {[%clk
0:02:09.1]} 13. Nxf3 {[%clk 0:02:08]} 13... Ne4 {[%clk 0:02:06]} 14. Rfc1 {[%clk
0:02:03.7]} 14... axb4 {[%clk 0:01:29.9]} 15. cxd5 {[%clk 0:02:02.1]} 15... bxa3
{[%clk 0:01:17.4]} 16. Bxa3 {[%clk 0:01:59.9]} 16... Qb6 {[%clk 0:00:38.4]} 17.
Qxb6 {[%clk 0:01:53.8]} 17... Nxb6 {[%clk 0:00:37.8]} 18. dxc6 {[%clk
0:01:55.3]} 18... bxc6 {[%clk 0:00:17.1]} 19. Rxc6 {[%clk 0:01:56]} 19... Nd5
{[%clk 0:00:15]} 20. Bb2 {[%clk 0:01:54.8]} 20... Rxa1+ {[%clk 0:00:12.5]} 21.
Bxa1 {[%clk 0:01:56.7]} 21... Ra8 {[%clk 0:00:09.2]} 22. Ra6 {[%clk 0:01:57.6]}
22... Rxa6 {[%clk 0:00:09.5]} 23. Bxa6 {[%clk 0:01:58.2]} 23... e5 {[%clk
0:00:08.6]} 24. Bb7 {[%clk 0:01:58.8]} 24... Ndc3 {[%clk 0:00:07.9]} 25. Bxe4
{[%clk 0:01:52.9]} 25... Nxe4 {[%clk 0:00:08.6]} 26. Nxe5 {[%clk 0:01:53.3]}
26... Bxe5 {[%clk 0:00:08.8]} 27. dxe5 {[%clk 0:01:54.4]} 27... Kf8 {[%clk
0:00:09.9]} 28. Kf1 {[%clk 0:01:55.6]} 28... Ke7 {[%clk 0:00:11.2]} 29. Ke2
{[%clk 0:01:56.8]} 29... Ke6 {[%clk 0:00:12.6]} 30. f3 {[%clk 0:01:57.1]} 30...
Ng3+ {[%clk 0:00:12.9]} 31. Kf2 {[%clk 0:01:56.6]} 31... Nf5 {[%clk 0:00:13.9]}
32. e4 {[%clk 0:01:57.1]} 32... Ne7 {[%clk 0:00:13.8]} 33. Ke3 {[%clk 0:01:58]}
33... Nc6 {[%clk 0:00:13.6]} 34. f4 {[%clk 0:01:58.8]} 34... f5 {[%clk 0:00:14]}
35. exf6 {[%clk 0:01:58.5]} 35... Kf7 {[%clk 0:00:12.4]} 36. g4 {[%clk
0:01:59.6]} 36... Nd8 {[%clk 0:00:10.7]} 37. f5 {[%clk 0:01:58.7]} 37... gxf5
{[%clk 0:00:11]} 38. gxf5 {[%clk 0:02:00.6]} 38... Nc6 {[%clk 0:00:09.7]} 39. e5
{[%clk 0:01:59.9]} 39... Nd8 {[%clk 0:00:09.2]} 40. Ke4 {[%clk 0:01:57.9]} 40...
h6 {[%clk 0:00:09.2]} 41. e6+ {[%clk 0:01:58.5]} 41... Nxe6 {[%clk 0:00:10]} 42.
fxe6+ {[%clk 0:01:59.7]} 42... Kxe6 {[%clk 0:00:11.5]} 43. Kf4 {[%clk
0:02:01.3]} 43... Kf7 {[%clk 0:00:12.1]} 44. Kg4 {[%clk 0:02:01.5]} 44... Kg6
{[%clk 0:00:13.4]} 45. h4 {[%clk 0:02:03]} 45... h5+ {[%clk 0:00:14.2]} 46. Kf4
{[%clk 0:02:04.7]} 46... Kf7 {[%clk 0:00:15.3]} 47. Kg5 {[%clk 0:02:06.3]} 47...
Kf8 {[%clk 0:00:16.6]} 48. Kxh5 {[%clk 0:02:07.8]} 48... Kg8 {[%clk 0:00:18.1]}
49. Kg5 {[%clk 0:02:09.7]} 49... Kf7 {[%clk 0:00:18.8]} 50. Bc3 {[%clk
0:02:09.4]} 50... Kg8 {[%clk 0:00:19.8]} 51. Kg6 {[%clk 0:02:10.1]} 51... Kh8
{[%clk 0:00:19]} 52. f7# {[%clk 0:02:10.3]} 1

[Event "Open Nuevo Centro. Jornada 1"]
[Site "Chess.com"]
[Date "2020.06.19"]
[Round "8"]
[White "Donate Peris, Jose Manuel"]
[Black "Yuste Valenzuela, Alejandro"]
[Result "1-0"]
[WhiteElo "1627"]
[BlackElo "1775"]
[TimeControl "180+2"]
[EndTime "12:02:17 PDT"]
[Termination "Victoria de cheryme por abandono"]

1. d4 {[%clk 0:03:01.9]} 1... Nf6 {[%clk 0:03:00.2]} 2. c4 {[%clk 0:03:02.6]}
2... g6 {[%clk 0:03:01.3]} 3. Nc3 {[%clk 0:03:03]} 3... Bg7 {[%clk 0:03:02.4]}
4. e4 {[%clk 0:03:03.7]} 4... d6 {[%clk 0:03:03.7]} 5. Nf3 {[%clk 0:03:03.7]}
5... O-O {[%clk 0:03:04.6]} 6. h3 {[%clk 0:02:59.7]} 6... e5 {[%clk 0:03:04.6]}
7. d5 {[%clk 0:02:59.6]} 7... c6 {[%clk 0:03:05.5]} 8. Be2 {[%clk 0:02:49]} 8...
cxd5 {[%clk 0:03:05.8]} 9. cxd5 {[%clk 0:02:48.4]} 9... Nbd7 {[%clk 0:03:00.5]}
10. Be3 {[%clk 0:02:47.8]} 10... Nc5 {[%clk 0:02:59.8]} 11. Bxc5 {[%clk
0:02:48.5]} 11... dxc5 {[%clk 0:03:00.7]} 12. O-O {[%clk 0:02:46.5]} 12... Nd7
{[%clk 0:02:58.5]} 13. Rc1 {[%clk 0:02:42.7]} 13... f5 {[%clk 0:02:57.7]} 14.
exf5 {[%clk 0:02:38.3]} 14... gxf5 {[%clk 0:02:59.6]} 15. Nh2 {[%clk 0:02:29.8]}
15... Kh8 {[%clk 0:02:54.8]} 16. Bc4 {[%clk 0:02:25.6]} 16... e4 {[%clk
0:02:46.5]} 17. Rc2 {[%clk 0:02:17.1]} 17... Ne5 {[%clk 0:02:46]} 18. b3 {[%clk
0:02:14.2]} 18... a6 {[%clk 0:02:25.8]} 19. a4 {[%clk 0:02:10.8]} 19... Qa5
{[%clk 0:01:45.4]} 20. Ne2 {[%clk 0:02:08.4]} 20... f4 {[%clk 0:01:24]} 21. d6
{[%clk 0:01:55]} 21... Qd8 {[%clk 0:01:11.4]} 22. Qd5 {[%clk 0:01:53.6]} 22...
f3 {[%clk 0:00:50.2]} 23. gxf3 {[%clk 0:01:48.2]} 23... exf3 {[%clk 0:00:27.8]}
24. Ng3 {[%clk 0:01:46.7]} 24... Bxh3 {[%clk 0:00:27.9]} 25. Re1 {[%clk
0:01:41.6]} 25... Nxc4 {[%clk 0:00:26.5]} 26. Rxc4 {[%clk 0:01:36.6]} 26... Rg8
{[%clk 0:00:21.2]} 27. Nxf3 {[%clk 0:01:30.2]} 27... Bf8 {[%clk 0:00:20.6]} 28.
Rxc5 {[%clk 0:01:18.9]} 28... Bxd6 {[%clk 0:00:21.3]} 29. Qd4+ {[%clk
0:01:17.5]} 29... Rg7 {[%clk 0:00:20.6]} 30. Rg5 {[%clk 0:01:14.9]} 30... Bf8
{[%clk 0:00:14.9]} 31. Qxd8 {[%clk 0:01:02.4]} 31... Rxd8 {[%clk 0:00:15]} 32.
Rxg7 {[%clk 0:00:58.8]} 32... Bxg7 {[%clk 0:00:16.9]} 33. Ng5 {[%clk 0:00:58.7]}
1